bitfinex/quotes_ETHUSD_20241119
["timestamp","ask_amount","ask_price","bid_price","bid_amount"]
[1732023785448,3.90732,3104.5,3103.8,3.22182]
[1732023785646,0.6861,3104.5,3103.9,3.22167]
[1732023785925,0.6861,3104.5,3103.8,3.22182]
[1732023785926,3.90723,3104.5,3103.8,3.22182]
[1732023786141,0.390718,3104.4,3103.5,3.22215]
[1732023786352,3.0,3104.0,3103.5,3.22215]
[1732023786630,3.0,3104.0,3102.5,3.23311]
[1732023786631,3.22202,3103.7,3102.2,3.22344]
[1732023786931,3.6861,3103.9,3102.1,0.7713]
[1732023787079,3.0,3103.6,3103.1,3.2225]
[1732023787295,3.691779,3103.8,3103.4,3.22225]
[1732023787632,6.22187,3103.8,3103.2,3.2224]
[1732023787926,3.90793,3103.9,3103.5,3.22209]
[1732023787927,0.6861,3103.9,3103.5,3.22209]
[1732023788231,0.07934116,3103.7,3102.8,3.22289]
[1732023788380,3.6861,3103.9,3103.3,3.22229]
[1732023788581,0.07913966,3103.6,3102.8,3.22279]
[1732023788795,0.6961,3103.9,3102.8,3.22279]
[1732023789026,0.07913809,3103.5,3102.8,3.22279]
[1732023789231,0.6961,3103.9,3102.7,3.22292]
[1732023789379,3.2225,3103.2,3102.5,3.22316]
[1732023789585,0.07912988,3103.4,3102.7,3.22299]
[1732023789586,3.22245,3103.3,3102.7,3.22299]
[1732023789901,3.30167673,3103.2,3102.6,3.31306]
[1732023790109,0.6861,3102.8,3102.6,0.09]
[1732023790413,3.22299,3102.7,3102.6,0.09]
[1732023790583,3.69299576,3102.7,3102.6,0.09]
[1732023790798,0.47000576,3102.7,3102.6,0.09]
[1732023792103,3.30208676,3102.7,3102.6,0.09]
[1732023792647,6.30208676,3102.7,3102.6,0.09]
[1732023792931,3.07909676,3102.7,3102.6,0.09]
[1732023793086,0.07909676,3102.7,3102.6,0.09]
[1732023793344,3.0,3102.7,3102.6,0.09]
[1732023793482,3.74764339,3102.7,3102.6,0.09]
[1732023793737,0.74764339,3102.7,3102.6,0.09]
[1732023795020,3.74764339,3102.7,3102.6,0.09]
[1732023795226,6.97063339,3102.7,3102.6,0.09]
[1732023795387,0.74764339,3102.7,3102.6,0.09]
[1732023795839,0.07903339,3102.7,3102.6,3.3131]
[1732023796334,0.6291139,3103.5,3102.6,3.3131]
[1732023796335,0.6291139,3103.5,3103.3,3.22234]
[1732023796532,0.6291139,3103.5,3102.6,0.09]
[1732023796833,0.07904661,3103.4,3103.2,3.22238]
[1732023797046,0.07904661,3103.4,3103.2,3.2224]
[1732023797390,0.07904661,3103.4,3103.3,3.22237]
[1732023797585,0.07904661,3103.4,3103.0,3.22261]
[1732023797839,3.22193,3103.8,3103.0,3.22261]
[1732023798050,0.07905393,3103.3,3103.0,3.22261]
[1732023798251,3.8670742,3104.0,3103.6,3.22199]
[1732023798252,0.6453942,3104.0,3103.6,3.22199]
[1732023798739,0.6453942,3104.0,3103.3,0.7709]
[1732023799033,0.6453942,3104.0,3103.6,3.22206]
[1732023799334,0.6453942,3104.0,3103.8,3.22184]
[1732023799546,0.6861,3104.3,3103.8,3.22184]
[1732023800132,3.0,3104.2,3103.6,3.22206]
[1732023800301,0.36861,3104.2,3103.9,3.22173]
[1732023800504,0.36861,3104.2,3104.0,3.22158]
[1732023800731,0.6861,3104.6,3104.2,3.22142]
[1732023800890,0.4495377,3104.6,3104.2,3.22142]
[1732023801092,0.6861,3104.9,3104.0,3.22161]
[1732023801339,0.6861,3104.9,3103.7,0.55]
[1732023801340,0.64219296,3104.6,3103.7,0.55]
[1732023801495,0.64219296,3104.6,3104.4,3.22114]
[1732023801806,0.64219296,3104.6,3104.5,3.22113]
[1732023802008,0.6861,3104.9,3104.4,3.22114]
[1732023802009,0.6861,3104.9,3104.6,3.22096]
[1732023802217,0.4495377,3104.9,3104.7,3.22092]
[1732023802433,0.4495377,3104.9,3104.1,3.22145]
[1732023802434,0.7423688,3105.3,3104.9,3.22064]
[1732023802603,0.6861,3105.7,3105.2,3.22031]
[1732023802816,0.6861,3105.7,3105.1,3.22043]
[1732023803018,0.390588,3105.6,3105.1,3.22043]
[1732023803233,0.46981798,3105.6,3105.1,3.22043]
[1732023803389,0.07922998,3105.6,3104.9,3.22068]
[1732023803738,3.0,3105.5,3105.0,3.22059]
[1732023804046,3.0,3105.1,3104.6,3.22102]
[1732023804334,3.0,3105.1,3103.5,3.23209]
[1732023804335,3.2211,3104.6,3103.9,3.22173]
[1732023804546,3.22131,3104.4,3103.7,3.22194]
[1732023804752,3.0,3104.0,3103.3,0.7553]
[1732023804894,7.03084697,3104.1,3103.2,3.22238]
[1732023804895,3.0,3103.8,3103.2,3.22238]
[1732023805091,0.07921927,3103.7,3103.4,3.22225]
[1732023805287,1.0030847,3103.9,3103.4,3.22225]
[1732023805538,3.47952932,3103.8,3103.2,3.22245]
[1732023805745,0.47952932,3103.8,3103.3,3.22237]
[1732023806293,3.70145932,3103.8,3103.0,3.22267]
[1732023806534,3.6702214,3103.7,3103.0,3.22267]
[1732023806749,0.6861,3103.6,3103.0,3.22267]
[1732023807035,3.9873631,3103.6,3102.9,0.7553]
[1732023807339,3.0,3103.3,3102.7,0.09]
[1732023807643,6.65780214,3103.5,3103.0,3.2226]
[1732023807837,0.07917681,3103.2,3102.8,3.2228]
[1732023807997,0.76451752,3103.4,3102.9,3.22277]
[1732023808197,0.07917523,3103.1,3102.9,3.22277]
[1732023808430,0.74223197,3103.3,3102.8,3.2228]
[1732023808628,0.74223197,3103.3,3103.0,3.22268]
[1732023808904,0.07917681,3103.2,3103.0,3.22268]
[1732023809104,3.43563214,3103.5,3103.0,3.22268]
[1732023809445,0.07912252,3103.4,3103.1,3.22256]
[1732023809961,0.6861,3103.6,3102.7,0.09]
[1732023809962,0.6861,3103.6,3103.2,3.22247]
[1732023810115,0.07912095,3103.3,3103.2,3.22239]
[1732023810309,3.0,3103.9,3103.3,3.22235]
[1732023810545,3.0,3103.8,3103.4,3.22226]
[1732023810866,0.6861,3104.0,3103.7,3.22195]
[1732023811168,0.6861,3104.4,3103.9,3.22173]
[1732023811458,0.6861,3104.4,3104.1,3.22154]
[1732023811622,3.22095,3104.7,3104.1,3.22154]
[1732023811825,3.22095,3104.7,3103.8,3.22185]
[1732023811826,3.22113,3104.5,3103.8,3.22185]
[1732023812061,0.6861,3104.6,3104.0,3.22164]
[1732023812260,0.45607011,3104.5,3104.0,3.22158]
[1732023812461,3.22119,3104.5,3103.8,3.22181]
[1732023812756,6.22125,3104.4,3103.8,3.22183]
[1732023812914,4.165594,3104.3,3103.8,3.22183]
[1732023813115,4.165594,3104.3,3103.2,3.22243]
[1732023813116,3.22171,3104.0,3103.4,3.22223]
[1732023813344,3.0,3104.1,3103.5,3.22215]
[1732023813540,0.322171,3103.9,3103.4,3.22217]
[1732023813755,0.322171,3103.9,3103.6,3.222]
[1732023814274,0.322171,3103.9,3103.8,3.22185]
[1732023814562,3.0,3104.4,3103.9,3.22169]
[1732023814777,3.0,3104.2,3103.5,3.22209]
[1732023815068,3.0,3104.2,3103.1,3.22253]
[1732023815069,3.6861,3104.0,3103.1,3.22253]
[1732023815216,0.3,3104.1,3103.7,3.22196]
[1732023815420,0.7030537,3104.3,3104.0,3.2216]
[1732023815615,3.22108,3104.6,3104.0,3.2216]
[1732023815855,3.22144,3104.2,3103.6,3.222]
[1732023816062,3.22144,3104.2,3103.2,0.7536]
[1732023816063,0.322144,3104.1,3103.7,3.22188]
[1732023816366,3.22135,3104.3,3103.7,3.22188]
[1732023816552,3.22102,3104.6,3103.5,3.22211]
[1732023816765,3.22155,3104.1,3103.5,3.22211]
[1732023816941,3.22155,3104.1,3103.3,3.22232]
[1732023816942,3.22182,3103.9,3103.3,3.22232]
[1732023817127,3.0,3103.8,3103.3,3.22232]
[1732023817323,3.0,3103.8,3103.1,3.22254]
[1732023817524,0.622182,3103.7,3103.1,3.22254]
[1732023817870,6.22195,3103.8,3102.9,4.05034]
[1732023817871,3.22227,3103.5,3102.9,3.22274]
[1732023818073,3.544507,3103.4,3102.7,3.31297]
[1732023818272,3.22244,3103.3,3102.7,3.31297]
[1732023818477,3.22264,3103.1,3102.7,0.09]
[1732023818632,3.322264,3103.0,3102.7,0.09]
[1732023818834,0.40142071,3103.0,3102.7,3.31298]
[1732023819025,0.40142071,3103.0,3102.7,0.09]
[1732023819225,3.40142071,3103.0,3102.7,0.09]
[1732023819465,0.66240007,3102.9,3102.7,0.09]
[1732023819989,6.30199276,3102.8,3102.7,0.09]
[1732023824401,0.07910276,3102.8,3102.7,0.09]
[1732023825415,6.30199276,3102.8,3102.7,0.09]
[1732023827381,6.30199276,3102.8,3101.7,0.7836]
[1732023827382,3.0,3102.7,3101.7,0.7836]
[1732023827716,3.0,3102.7,3101.1,0.005]
[1732023827717,3.0,3102.2,3101.6,3.22413]
[1732023827920,0.0790291,3102.1,3101.7,3.22395]
[1732023828181,0.64605138,3102.0,3101.5,3.22424]
[1732023828439,0.72507891,3102.0,3101.8,3.22388]
[1732023828622,0.72507891,3102.0,3101.9,3.22383]
[1732023828623,0.07902753,3102.0,3101.9,3.22383]
[1732023829004,3.0,3102.5,3102.0,3.22368]
[1732023829205,0.63844395,3102.3,3101.9,3.22382]
[1732023829644,3.322313,3102.5,3101.7,3.22396]
[1732023829785,3.545593,3102.5,3101.8,3.22383]
[1732023829988,3.3322313,3102.4,3101.8,3.22383]
[1732023830281,3.3322313,3102.4,3101.9,3.22381]
[1732023830483,0.3322313,3102.4,3102.0,3.22371]
[1732023830727,0.390902,3102.7,3102.4,3.22324]
[1732023830887,3.94274817,3103.2,3102.4,3.22324]
[1732023830888,0.6861,3103.2,3102.4,3.22324]
[1732023831083,0.6961,3103.1,3101.6,0.7872]
[1732023831325,4.47989851,3103.2,3101.2,0.7872]
[1732023831326,3.22369,3102.1,3101.2,0.7872]
[1732023831488,3.22353,3102.2,3101.6,3.22414]
[1732023831689,0.6861,3102.4,3101.3,3.22445]
[1732023831885,3.22332,3102.4,3101.9,0.7872]
[1732023832103,3.0,3102.3,3101.9,0.7872]
[1732023832397,0.6861,3102.9,3101.4,0.7972]
[1732023832398,3.0,3102.5,3101.4,0.7972]
[1732023832729,0.63344798,3102.5,3102.1,3.22355]
[1732023832943,3.07886291,3102.4,3101.6,3.22413]
[1732023833230,0.07886291,3102.4,3101.5,3.22424]
[1732023833540,0.07886291,3102.4,3102.1,3.22361]
[1732023833715,0.07886291,3102.4,3102.3,3.22341]
[1732023833928,0.07886291,3102.4,3102.1,0.8056]
[1732023833929,3.30219291,3102.4,3102.1,0.8056]
[1732023834085,0.39356409,3102.3,3101.7,0.8056]
[1732023834283,0.07886291,3102.4,3101.7,0.8056]
[1732023834284,0.07886347,3102.2,3101.7,4.02957]
[1732023834490,0.07886347,3102.2,3101.8,3.22391]
[1732023834732,0.07886189,3102.1,3101.8,3.22391]
[1732023834938,0.07886189,3102.1,3102.0,3.22372]
[1732023835141,0.63970186,3102.6,3102.0,3.22372]
[1732023835405,0.63970186,3102.6,3101.7,0.8056]
[1732023835607,0.63970186,3102.6,3102.2,3.22344]
[1732023835916,0.51759985,3103.0,3102.4,3.9743]
[1732023836108,0.63061116,3103.1,3102.4,3.9743]
[1732023836109,0.63061116,3103.1,3102.6,3.22305]
[1732023836308,0.63061116,3103.1,3102.5,3.2232]
[1732023836805,0.63061116,3103.1,3101.9,0.7528]
[1732023836806,3.80927697,3103.0,3101.9,0.7528]
[1732023837007,3.80927697,3102.6,3101.5,0.7528]
[1732023837202,3.22323,3102.5,3101.6,3.22413]
[1732023837406,0.44398881,3102.9,3101.6,3.97694]
[1732023837635,3.0,3102.8,3102.2,3.2235]
[1732023838066,3.0,3102.8,3102.0,3.22372]
[1732023838067,3.22299,3102.7,3102.0,3.22372]
[1732023838355,3.0,3102.8,3102.2,3.22351]
[1732023838527,3.6861,3103.1,3102.4,3.22329]
[1732023838719,3.6861,3103.1,3102.2,3.97957]
[1732023838720,6.2228,3102.9,3102.2,3.97957]
[1732023839257,6.22281,3102.9,3102.2,0.7561]
[1732023839922,3.0,3102.9,3102.2,0.7561]
[1732023840123,3.0,3102.5,3102.2,0.7561]
[1732023840423,3.0,3102.9,3102.2,3.97961]
[1732023840629,3.690879,3102.9,3102.4,3.2233]
[1732023840969,3.0,3102.9,3102.3,3.22335]
[1732023841253,3.90869,3103.1,3102.5,3.22319]
[1732023841456,0.62926287,3103.4,3103.0,3.22266]
[1732023841673,0.6861,3103.6,3103.0,3.22266]
[1732023842221,3.22188,3103.8,3103.1,3.22248]
[1732023842421,0.322188,3103.7,3103.2,3.22246]
[1732023842652,0.322188,3103.7,3103.4,3.22226]
[1732023842992,0.64241415,3103.8,3103.5,3.22216]
[1732023843285,0.6861,3104.4,3103.9,3.22175]
[1732023843424,0.390725,3104.3,3103.9,3.22175]
[1732023843628,0.390725,3104.3,3103.8,3.22177]
[1732023843976,3.612145,3104.3,3103.7,3.22194]
[1732023844277,3.22142,3104.3,3103.7,3.22194]
[1732023844619,3.0,3104.2,3103.6,3.22202]
[1732023844866,0.6861,3104.4,3103.1,3.22253]
[1732023844867,0.63113241,3104.0,3103.9,3.22175]
[1732023845051,4.49537697,3105.0,3103.9,4.02447]
[1732023845263,3.22162,3104.1,3103.5,0.8028]
[1732023845462,0.390772,3104.0,3103.2,3.22245]
[1732023845630,3.22186,3103.8,3103.2,3.22245]
[1732023846025,3.29084424,3103.7,3103.1,4.01704]
[1732023846270,3.29084424,3103.7,3103.1,0.7945]
[1732023846483,3.29084424,3103.7,3102.7,3.22299]
[1732023846484,0.6861,3103.4,3102.7,3.22299]
[1732023846780,6.2225,3103.2,3102.6,3.22309]
[1732023847127,0.06886951,3103.1,3102.6,3.22309]
[1732023847331,0.06886951,3103.1,3102.2,0.7945]
[1732023847596,0.06886951,3103.1,3103.0,3.22268]
[1732023847882,0.06886951,3103.1,3102.9,4.01728]
[1732023848024,3.0,3103.4,3102.9,0.7945]
[1732023848228,0.06422101,3103.0,3102.9,4.01729]
[1732023848593,3.0,3104.0,3103.3,3.22235]
[1732023848747,6.222,3103.7,3103.0,3.22258]
[1732023848950,3.22233,3103.4,3102.6,3.22302]
[1732023849146,3.0,3103.7,3102.6,3.22302]
[1732023849147,0.6861,3103.5,3102.6,0.7945]
[1732023849458,0.1630485,3103.4,3102.6,0.7945]
[1732023849659,0.1630485,3103.4,3102.7,3.22299]
[1732023849863,3.0,3102.9,3102.3,0.7983]
[1732023850107,3.3853285,3103.4,3102.7,3.22298]
[1732023850242,3.94895363,3103.7,3103.2,3.22238]
[1732023850447,0.6861,3103.8,3103.3,3.22237]
[1732023850448,3.0,3103.8,3103.3,3.22237]
[1732023850673,6.52193,3103.8,3103.1,4.02085]
[1732023850901,6.52193,3103.8,3103.2,3.22247]
[1732023850902,3.3,3103.8,3103.2,3.22247]
[1732023851054,0.33,3103.7,3103.1,4.02086]
[1732023851255,3.0,3103.5,3103.1,0.7983]
[1732023851588,3.33,3103.7,3103.3,3.22237]
[1732023851589,0.3,3103.4,3103.3,3.22237]
[1732023851791,0.33,3103.7,3103.3,3.22237]
[1732023851952,0.33,3103.7,3103.1,4.02079]
[1732023852149,0.33,3103.7,3103.6,3.22206]
[1732023852396,0.65345028,3104.2,3103.6,6.44404]
[1732023852692,4.63505363,3104.4,3103.8,3.22178]
[1732023852901,0.6861,3104.4,3103.8,3.22178]
[1732023853207,3.87881819,3104.7,3104.2,3.2214]
[1732023853354,4.98372445,3104.7,3104.0,3.22156]
[1732023853556,0.65787819,3104.7,3104.0,0.55]
[1732023853784,0.65787819,3104.7,3104.4,3.22123]
[1732023853996,0.65787819,3104.7,3104.6,3.22102]
[1732023854491,3.80927697,3105.4,3104.8,3.22078]
[1732023854492,7.02953697,3105.4,3104.8,3.22078]
[1732023854703,0.7715497,3105.3,3104.8,3.22078]
[1732023854851,0.8337915,3105.3,3104.8,3.22078]
[1732023855051,0.8337915,3105.3,3104.7,3.22089]
[1732023855052,4.0541615,3105.3,3104.7,3.22089]
[1732023855251,4.0541615,3105.3,3104.2,3.22142]
[1732023855252,0.78633285,3105.2,3104.2,0.7895]
[1732023855498,0.40689247,3105.1,3104.6,3.22094]
[1732023855680,0.40689247,3105.1,3104.8,3.22079]
[1732023855881,0.84655101,3105.2,3104.7,3.22082]
[1732023855882,0.06021501,3105.0,3104.7,3.22082]
[1732023856083,0.06021501,3105.0,3104.6,3.22094]
[1732023856084,0.06021501,3105.0,3104.6,6.44188]
[1732023856400,0.06021501,3105.0,3104.2,0.7895]
[1732023856401,3.22088,3104.8,3104.2,4.01089]
[1732023856568,0.6861,3104.8,3104.2,3.22134]
[1732023856754,0.75696175,3104.7,3104.0,3.2216]
[1732023857102,0.75696175,3104.7,3104.3,3.22127]
[1732023857435,3.22114,3104.5,3104.0,3.22163]
[1732023857563,3.0,3104.4,3103.9,3.22168]
[1732023857764,3.0,3104.4,3104.1,3.22154]
[1732023857765,0.06022913,3104.4,3104.1,3.22154]
[1732023857973,3.0,3104.6,3104.1,3.22051886]
[1732023858169,0.06022756,3104.3,3104.1,3.22051886]
[1732023858395,0.69177104,3104.5,3103.8,3.98088]
[1732023858608,0.69177104,3104.5,3103.4,0.8215]
[1732023858609,3.22142,3104.3,3103.4,0.8215]
[1732023858780,3.22142,3104.3,3103.6,3.22197]
[1732023858988,0.68233989,3104.2,3103.6,3.22197]
[1732023859198,0.06019789,3104.2,3104.1,3.22154]
[1732023859400,3.0,3104.4,3103.9,3.22169]
[1732023859613,0.06018497,3104.2,3104.0,3.22164]
[1732023859792,0.06018497,3104.2,3103.9,3.22169]
[1732023859793,3.6861,3104.8,3104.1,3.22154]
[1732023859997,3.0,3104.6,3104.2,3.22143]
[1732023860183,3.0,3104.6,3103.9,6.4434]
[1732023860184,6.22104,3104.6,3103.9,6.4434]
[1732023860369,0.68228269,3104.5,3104.0,3.22163]
[1732023860574,3.0,3104.4,3104.0,3.22163]
[1732023860804,3.06016606,3104.4,3104.0,3.22163]
[1732023861004,3.2214,3104.3,3103.7,3.2219]
[1732023861312,3.0,3104.0,3103.4,4.04367]
[1732023861512,0.690772,3104.0,3103.4,0.8215]
[1732023861723,0.690772,3104.0,3102.4,0.01]
[1732023861724,0.06015135,3103.9,3103.5,3.22216]
[1732023861874,0.06015135,3103.9,3103.7,3.22195]
[1732023862368,0.06014294,3103.8,3103.7,3.22189]
[1732023862607,3.6861,3104.4,3103.9,3.2217]
[1732023862809,3.6861,3104.4,3103.7,3.22189]
[1732023862810,0.0601171,3103.8,3103.7,4.0134]
[1732023863011,3.0,3104.6,3104.2,3.22142]
[1732023863210,3.0,3104.8,3104.2,3.22142]
[1732023863367,0.06011214,3104.5,3103.8,3.22177]
[1732023863573,3.22109,3104.6,3103.8,3.22177]
[1732023863884,0.06011057,3104.4,3104.0,3.22157]
[1732023864084,0.06011214,3104.5,3104.0,3.22157]
[1732023864316,0.21550557,3104.7,3104.1,3.22148]
[1732023864317,0.060109,3104.3,3104.1,3.22148]
[1732023864624,0.06010742,3104.2,3104.0,3.22163]
[1732023864787,3.21550557,3104.7,3104.0,3.22163]
[1732023864989,3.21550557,3104.7,3104.2,3.22137]
[1732023864990,0.64363556,3104.6,3104.2,3.22137]
[1732023865184,0.64363556,3104.6,3103.7,4.414793]
[1732023865185,4.3200482,3104.9,3104.4,3.22113]
[1732023865502,0.6339482,3104.9,3104.6,3.22095]
[1732023865700,0.6339482,3104.9,3104.4,6.44228]
[1732023865887,0.6339482,3104.9,3104.4,3.22113]
[1732023866086,0.6339482,3104.9,3104.5,3.22107]
[1732023866466,3.8547182,3104.9,3104.3,3.22129]
[1732023866725,3.8547182,3104.9,3104.0,3.22162]
[1732023866726,3.22088,3104.8,3104.0,3.22162]
[1732023866873,3.0,3104.7,3104.0,3.22157]
[1732023867075,3.0,3104.7,3104.2,3.22142]
[1732023867076,3.75403,3104.7,3104.2,3.22142]
[1732023867279,6.97501,3104.7,3104.2,3.22143]
[1732023867521,3.75403,3104.7,3104.2,3.22137]
[1732023868020,0.375403,3104.6,3103.7,0.7915]
[1732023868223,0.375403,3104.6,3104.1,3.22146]
[1732023868385,0.375403,3104.6,3103.7,0.7915]
[1732023868386,4.31942002,3104.9,3104.3,3.22124]
[1732023868721,6.8546882,3104.9,3104.4,3.22121]
[1732023869017,3.6339482,3104.9,3104.4,6.44236]
[1732023869223,3.6339482,3104.9,3104.3,3.22133]
[1732023869390,0.74432252,3104.8,3104.3,3.22133]
[1732023869808,3.0,3104.7,3104.3,3.22133]
[1732023870113,3.0,3104.7,3104.1,3.22154]
[1732023870327,6.22098,3104.7,3104.1,3.22148]
[1732023870525,6.22098,3104.7,3102.9,6.22275]
[1732023870526,0.6861,3104.6,3102.9,3.0]
[1732023870729,0.6861,3104.6,3101.2,2.00948807]
[1732023870730,3.22179,3103.9,3103.4,0.8197]
[1732023871028,3.0,3103.8,3103.3,3.22235]
[1732023871192,3.90775,3104.0,3103.3,3.22235]
[1732023871393,3.390767,3103.9,3103.3,3.22235]
[1732023871607,3.0,3103.8,3103.3,3.22235]
[1732023871810,6.22195,3103.8,3103.1,3.22257]
[1732023872012,0.7298617,3103.8,3103.0,3.22265]
[1732023872179,6.22175,3103.9,3103.2,3.22241]
[1732023872396,3.0,3103.9,3103.4,3.22226]
[1732023872600,3.6861,3104.0,3103.3,3.22237]
[1732023872895,3.0,3104.2,3103.5,3.22208]
[1732023873250,4.49537697,3104.6,3103.9,3.22167]
[1732023873533,3.22094,3104.7,3104.1,3.22149]
[1732023873692,0.322094,3104.6,3104.1,3.22149]
[1732023873896,0.322094,3104.6,3103.6,0.55]
[1732023873897,0.6474229,3104.3,3103.7,3.22187]
[1732023874395,6.8687629,3104.3,3103.7,3.22187]
[1732023874593,3.22151,3104.2,3103.3,3.22234]
[1732023874797,3.22151,3104.2,3103.3,3.2223]
[1732023874798,3.22164,3104.1,3103.3,3.2223]
[1732023875224,3.22164,3104.1,3103.5,3.22208]
[1732023875406,6.22134,3104.3,3103.5,3.866518]
[1732023875621,3.22138,3104.3,3103.5,3.22212]
[1732023875825,3.843608,3104.2,3103.6,3.22206]
[1732023876025,3.0,3104.4,3104.0,3.22157]
[1732023876199,4.32984985,3104.5,3103.8,0.7572]
[1732023876397,0.81391268,3104.4,3103.9,3.22166]
[1732023876627,6.22087,3104.8,3104.1,3.22145]
[1732023876826,6.22087,3104.8,3104.0,3.22162]
[1732023876827,3.22092,3104.7,3104.0,3.22162]
[1732023877029,3.944179,3104.6,3104.0,3.22162]
[1732023877231,4.165209,3104.6,3104.0,3.22162]
[1732023877401,3.0,3104.4,3103.8,3.97898]
[1732023877735,0.3,3104.3,3103.8,3.97897]
[1732023878038,0.05809673,3104.2,3104.0,3.22164]
[1732023878242,7.165209,3104.6,3104.0,3.22164]
[1732023878395,0.05811569,3104.1,3104.0,3.22164]
[1732023878595,3.944179,3104.6,3104.0,3.22164]
[1732023878850,0.05812198,3104.5,3104.2,3.22135]
[1732023878992,4.54686236,3104.9,3104.4,3.22123]
[1732023878993,1.32611236,3104.9,3104.4,3.22123]
[1732023879197,0.0581267,3104.8,3104.2,3.22135]
[1732023879436,0.0581267,3104.8,3104.3,3.22133]
[1732023879739,0.0581267,3104.8,3104.4,3.22119]
[1732023880043,0.83804061,3104.8,3104.4,3.22119]
[1732023880228,0.83804061,3104.8,3104.5,3.22111]
[1732023880547,3.80927697,3104.6,3103.9,0.7928]
[1732023880834,3.80927697,3104.6,3103.8,3.22176]
[1732023880835,4.12514665,3104.5,3103.8,3.22176]
[1732023881040,7.34629665,3104.5,3103.9,3.22175]
[1732023881237,1.43765436,3104.4,3103.9,3.22175]
[1732023881449,1.49580213,3104.4,3103.8,3.22185]
[1732023881764,1.49580213,3104.4,3103.6,0.7928]
[1732023881765,0.05814777,3104.4,3104.3,3.22133]
[1732023881912,0.05814777,3104.4,3104.1,3.22145]
[1732023882121,3.0,3104.6,3104.1,3.22145]
[1732023882306,0.0582093,3104.3,3104.1,3.22145]
[1732023882509,0.77991391,3104.8,3104.4,3.22122]
[1732023882741,3.64001236,3104.9,3104.4,3.22122]
[1732023883245,3.64001236,3104.9,3103.3,0.01]
[1732023883246,3.64001236,3104.9,3103.7,0.7828]
[1732023883545,6.221,3104.7,3103.9,3.22174]
[1732023883840,6.221,3104.7,3104.1,3.22152]
[1732023883841,3.0,3104.7,3104.1,3.22152]
[1732023884039,0.93618495,3104.6,3104.1,3.22152]
[1732023884410,0.93618495,3104.6,3104.2,3.22137]
[1732023884799,0.64001236,3104.9,3103.9,0.8229]
[1732023885003,200.0,3105.0,3104.8,3.22081]
[1732023885351,200.0,3105.0,3104.0,3.22164]
[1732023885352,200.63610271,3105.0,3104.7,4.0438]
[1732023885518,203.14099947,3105.0,3104.7,4.0438]
[1732023885722,203.14099947,3105.0,3104.2,0.7595]
[1732023886049,3.82709947,3104.9,3104.2,0.7595]
[1732023886628,3.14099947,3104.9,3104.6,3.22095]
[1732023886801,1.37149811,3104.8,3104.6,3.22095]
[1732023887300,3.14099947,3104.9,3104.4,3.22122]
[1732023887498,3.14099947,3104.9,3104.5,3.22112]
[1732023888148,3.14099947,3104.9,3104.4,3.22122]
[1732023888355,3.14099947,3104.9,3104.3,3.22133]
[1732023888505,3.14099947,3104.9,3104.4,3.22123]
[1732023888506,3.14099947,3104.8,3104.4,3.22123]
[1732023888696,3.14099947,3104.8,3104.3,3.22133]
[1732023888901,3.14099947,3104.8,3104.3,3.22124]
[1732023889120,6.36181947,3104.8,3104.3,3.22124]
[1732023889410,0.95028189,3104.7,3104.3,3.22124]
[1732023890441,0.64473526,3104.6,3104.2,3.22142]
[1732023890741,0.64473526,3104.6,3104.1,3.22154]
[1732023890956,0.42121622,3104.5,3104.1,3.22154]
[1732023891401,0.42121622,3104.5,3104.2,3.22137]
[1732023891601,0.64473526,3104.6,3104.4,3.22122]
[1732023892046,0.64473526,3104.6,3104.2,3.22135]
[1732023892230,0.64473526,3104.6,3104.0,0.55]
[1732023892756,3.0,3104.9,3104.0,0.55]
[1732023892906,3.0,3104.9,3104.7,3.22082]
[1732023893245,3.0,3104.9,3104.0,0.55]
[1732023893246,0.05195356,3104.8,3104.3,3.22124]
[1732023893557,0.68204729,3104.8,3104.4,3.22119]
[1732023893852,0.68204729,3104.8,3104.5,3.22111]
[1732023894144,0.68204729,3104.8,3104.3,3.22124]
[1732023894355,0.68204729,3104.8,3104.4,3.22122]
[1732023894974,4.64189347,3104.8,3104.4,3.22122]
[1732023895169,7.78289294,3104.8,3104.2,6.44277]
[1732023895466,3.95984618,3104.6,3104.2,3.22136]
[1732023895674,7.04392676,3104.8,3104.3,3.22133]
[1732023895675,4.0118028,3104.7,3104.3,3.22133]
[1732023895852,0.05195347,3104.5,3104.3,3.22133]
[1732023896173,3.95984618,3104.7,3104.4,3.22123]
[1732023896366,3.95984618,3104.6,3104.4,3.22123]
[1732023896575,3.95984618,3104.7,3104.4,3.22123]
[1732023896743,3.95984618,3104.7,3104.0,1.005603]
[1732023897076,3.95984618,3104.7,3104.2,3.22138]
[1732023897365,3.22131,3104.4,3103.7,3.2219]
[1732023897571,3.95984618,3104.2,3103.8,3.22178]
[1732023897729,3.95984618,3104.2,3103.6,3.9868]
[1732023897932,3.95984618,3104.1,3103.6,3.222]
[1732023898155,3.95984618,3104.0,3103.6,3.222]
[1732023898366,3.95984618,3104.0,3103.3,0.8146]
[1732023898367,3.95984618,3104.0,3103.7,3.22189]
[1732023898563,3.95984618,3104.0,3103.9,3.22175]
[1732023898782,3.95984618,3104.2,3104.1,3.22154]
[1732023899287,6.95984618,3104.3,3104.1,3.22154]
[1732023899573,3.95984618,3104.2,3104.0,3.22164]
[1732023900375,3.95984618,3104.2,3104.0,3.22161]
[1732023900575,3.0,3104.3,3103.8,3.22179]
[1732023900787,3.96774542,3104.1,3103.8,3.22179]
[1732023900990,3.96774542,3104.2,3103.8,3.22184]
[1732023901148,3.96774542,3104.2,3103.6,4.0053]
[1732023901149,3.96774542,3104.2,3103.6,0.7833]
[1732023901492,3.96774542,3104.4,3104.2,3.22144]
[1732023902282,3.96774542,3104.4,3104.0,3.22164]